fUSD/lending_fUSD_20260401
["ID","MTS","AMOUNT","RATE_DAILY","PERIOD"]
[419262019,1775074237680,-500.0,0.00014623,2]
[419262020,1775074237689,-500.0,0.00014623,2]
[419262021,1775074237698,-500.0,0.00014623,2]
[419262022,1775074237707,-500.0,0.00014623,2]
[419262023,1775074237716,-500.0,0.00014623,2]
[419262024,1775074237725,-346.42335075,0.00014623,2]
[419262025,1775074237734,-500.0,0.00014623,2]
[419262026,1775074237743,-500.0,0.00014623,2]
[419262027,1775074237752,-460.05168278,0.00014623,2]
[419262028,1775074237762,-500.0,0.00014623,2]
[419262029,1775074237771,-500.0,0.00014623,2]
[419262030,1775074237780,-500.0,0.00014623,2]
[419262031,1775074237790,-504.36750363,0.00014623,2]
[419262032,1775074237800,-500.0,0.00014623,2]
[419262033,1775074237809,-1068.29039544,0.00014623,5]
[419262034,1775074237818,-16136.17804413,0.00014624,2]
[419262035,1775074237833,-3149.61201621,0.00014624,2]
[419262036,1775074237844,-204612.21762733,0.00014624,2]
[419262037,1775074237856,-1343.82,0.00014624,2]
[419262062,1775074238185,-679.13157153,0.00014624,2]
[419262066,1775074238216,-2158.93442289,0.00014624,2]
[419262068,1775074238227,-1735.23284729,0.00014624,2]
[419262070,1775074238239,-5325.98408547,0.00014624,2]
[419262075,1775074238274,-405.99,0.00014624,2]
[419262077,1775074238289,-6769.99,0.00014624,2]
[419262080,1775074238304,-464.31085152,0.00014624,2]
[419262142,1775074239834,-2080.09421895,0.00014624,2]
[419262143,1775074239940,-37138.94767974,0.00014624,2]
[419262144,1775074239995,-1555.17783652,0.00014624,2]
[419262145,1775074240525,-6901.94879842,0.00014624,2]
[419262146,1775074240534,-3240.0,0.00014639,2]
[419262147,1775074240544,-563.03965451,0.0001469,2]
[419262148,1775074240555,-4627.45486117,0.00014733,2]
[419262149,1775074240564,-563.03965451,0.00014841,2]
[419262150,1775074240575,-500.0,0.00014896,2]
[419262151,1775074240584,-901.0,0.00014925,2]
[419262152,1775074240594,-901.0,0.00014925,2]
[419262153,1775074240604,-901.0,0.00014925,2]
[419262154,1775074240614,-901.0,0.00014925,2]
[419262155,1775074240624,-901.0,0.00014925,2]
[419262156,1775074240633,-901.0,0.00014925,2]
[419262157,1775074240643,-901.0,0.00014925,2]
[419262158,1775074240652,-901.0,0.00014925,2]
[419262159,1775074240662,-901.0,0.00014925,2]
[419262160,1775074240672,-901.0,0.00014925,2]
[419262161,1775074240682,-901.0,0.00014925,2]
[419262162,1775074240691,-901.0,0.00014925,2]
[419262163,1775074240703,-901.0,0.00014925,2]
[419262164,1775074240713,-901.0,0.00014925,2]
[419262165,1775074240724,-901.0,0.00014925,2]
[419262166,1775074240734,-901.0,0.00014925,2]
[419262167,1775074240744,-901.0,0.00014925,2]
[419262168,1775074240753,-901.0,0.00014925,2]
[419262169,1775074240763,-901.0,0.00014925,2]
[419262170,1775074240772,-901.0,0.00014925,2]
[419262171,1775074240783,-901.0,0.00014925,2]
[419262172,1775074240793,-901.0,0.00014925,2]
[419262173,1775074240805,-901.0,0.00014925,2]
[419262174,1775074240816,-911.64792561,0.00014925,2]
[419262175,1775074240826,-563.03965451,0.00014993,2]
[419262176,1775074240842,-300.0,0.00015,2]
[419262177,1775074240853,-1358.22816333,0.00015,2]
[419262178,1775074240863,-200.0,0.00015127,2]
[419262179,1775074240874,-563.03965451,0.00015144,2]
[419262180,1775074240884,-578.20924308,0.00015199,2]
[419262181,1775074240895,-500.0,0.00015199,2]
[419262182,1775074240905,-500.0,0.00015199,2]
[419262183,1775074240914,-200.0,0.00015199,2]
[419262184,1775074240926,-500.0,0.00015199,2]
[419262185,1775074240936,-233.51889342,0.00015199,2]
[419262186,1775074240947,-151.0,0.00015199,2]
[419262187,1775074240958,-500.0,0.00015199,2]
[419262188,1775074240968,-500.0,0.00015199,2]
[419262189,1775074240979,-500.0,0.00015199,2]
[419262190,1775074240988,-500.0,0.00015199,2]
[419262191,1775074240998,-500.0,0.00015199,2]
[419262192,1775074241008,-500.0,0.00015199,2]
[419262193,1775074241018,-500.0,0.00015199,2]
[419262194,1775074241028,-500.0,0.00015199,2]
[419262195,1775074241038,-500.0,0.00015199,2]
[419262196,1775074241048,-500.0,0.00015199,2]
[419262197,1775074241058,-500.0,0.00015199,2]
[419262198,1775074241068,-500.0,0.00015199,2]
[419262199,1775074241077,-500.0,0.00015199,2]
[419262200,1775074241087,-500.0,0.00015199,2]
[419262201,1775074241098,-500.0,0.00015199,2]
[419262202,1775074241109,-500.0,0.00015199,2]
[419262203,1775074241118,-500.0,0.00015199,2]
[419262204,1775074241129,-500.0,0.00015199,2]
[419262205,1775074241139,-500.0,0.00015199,2]
[419262206,1775074241149,-500.0,0.00015199,2]
[419262207,1775074241159,-500.0,0.00015199,2]
[419262208,1775074241170,-500.0,0.00015199,2]
[419262209,1775074241181,-500.0,0.00015199,2]
[419262210,1775074241191,-151.0,0.00015199,2]
[419262211,1775074241201,-379.77282095,0.00015199,2]
[419262212,1775074241211,-500.0,0.00015199,2]
[419262213,1775074241220,-500.0,0.00015199,2]
[419262214,1775074241232,-500.0,0.00015199,2]
[419262215,1775074241242,-500.0,0.00015199,2]
[419262216,1775074241252,-500.0,0.00015199,2]
[419262217,1775074241262,-174.61919141,0.00015199,2]
[419262218,1775074241272,-250.0,0.00015199,2]
[419262219,1775074241284,-250.0,0.00015199,2]
[419262220,1775074241294,-250.0,0.00015199,2]
[419262221,1775074241305,-250.0,0.00015199,2]
[419262222,1775074241314,-250.0,0.00015199,2]
[419262223,1775074241324,-312.13772435,0.00015199,2]
[419262224,1775074241334,-743.50770149,0.00015199,2]
[419262225,1775074241347,-500.0,0.00015254,2]
[419262226,1775074241356,-151.0,0.00015254,2]
[419262227,1775074241366,-249.93340052,0.00015291,2]
[419262228,1775074241376,-563.03965451,0.00015295,2]
[419262229,1775074241386,-1693.0,0.000153,2]
[419262230,1775074241397,-600.0,0.000153,5]
[419262231,1775074241407,-160.0,0.00015306,2]
[419262232,1775074241417,-261.81263973,0.00015307,2]
[419262233,1775074241428,-500.0,0.00015309,2]
[419262234,1775074241438,-151.0,0.00015309,2]
[419262235,1775074241449,-227.19733302,0.00015312,2]
[419262236,1775074241459,-500.0,0.00015364,2]
[419262237,1775074241468,-151.0,0.00015364,2]
[419262238,1775074241479,-154.60391024,0.00015383,2]
[419262239,1775074241490,-1300.0,0.000154,5]
[419262240,1775074241500,-3024.724,0.00015407,2]
[419262241,1775074241510,-378.1229,0.00015407,2]
[419262242,1775074241520,-500.0,0.00015419,2]
[419262243,1775074241530,-151.0,0.00015419,2]
[419262244,1775074241540,-563.03965451,0.00015446,2]
[419262245,1775074241550,-500.0,0.00015451,2]
[419262246,1775074241560,-500.0,0.00015451,2]
[419262247,1775074241570,-500.0,0.00015451,2]
[419262248,1775074241580,-500.0,0.00015451,2]
[419262249,1775074241589,-500.0,0.00015451,2]
[419262250,1775074241599,-500.0,0.00015451,2]
[419262251,1775074241609,-500.0,0.00015451,2]
[419262252,1775074241618,-500.0,0.00015451,2]
[419262253,1775074241628,-500.0,0.00015451,2]
[419262254,1775074241638,-500.0,0.00015451,2]
[419262255,1775074241648,-500.0,0.00015451,2]
[419262256,1775074241658,-504.78099444,0.00015451,2]
[419262257,1775074241668,-500.0,0.00015474,2]
[419262258,1775074241678,-151.0,0.00015474,2]
[419262259,1775074241689,-2000.0,0.000155,5]
[419262260,1775074241698,-350.0,0.00015504,2]
[419262261,1775074241708,-4000.0,0.00015507,2]
[419262262,1775074241718,-500.0,0.00015529,2]
[419262263,1775074241728,-350.0,0.00015564,2]
[419262264,1775074241738,-500.0,0.00015584,2]
[419262265,1775074241747,-563.03965451,0.00015598,2]
[419262266,1775074241758,-2700.0,0.000156,5]
[419262267,1775074241768,-500.0,0.00015639,2]
[419262268,1775074241777,-168.0,0.00015667,2]
[419262269,1775074241787,-500.0,0.00015694,2]
[419262270,1775074241797,-1619.606,0.000157,2]
[419262271,1775074241808,-3400.0,0.000157,5]
[419262272,1775074241820,-181.08010149,0.00015747,2]
[419262273,1775074241832,-208.80715955,0.00015747,2]
[419262274,1775074241842,-327.03538074,0.00015749,2]
[419262275,1775074241852,-563.03965451,0.00015749,2]
[419262276,1775074241861,-500.0,0.00015749,2]
[419262277,1775074241871,-168.0,0.00015756,2]
[419262278,1775074241881,-824.0,0.00015793,2]
[419262279,1775074241891,-593.7878538,0.000158,2]
[419262280,1775074241901,-8214.9089,0.000158,2]
[419262281,1775074241912,-5000.0,0.000158,2]
[419262282,1775074241923,-600.0,0.000158,5]
[419262283,1775074241933,-744.4650076,0.000158,2]
[419262284,1775074241943,-500.0,0.00015804,2]
[419262285,1775074241953,-168.0,0.00015841,2]
[419262286,1775074241964,-500.0,0.00015872,2]
[419262287,1775074241975,-200.0,0.00015872,2]
[419262288,1775074241985,-500.0,0.00015873,2]
[419262289,1775074242001,-500.0,0.00015873,2]
[419262290,1775074242017,-2000.0,0.0001589,2]
[419262291,1775074242028,-4000.0,0.00015895,2]
[419262292,1775074242040,-151.0,0.00015896,2]
[419262293,1775074242050,-1062.52406751,0.00015899,5]
[419262294,1775074242062,-204.07600257,0.00015899,5]
[419262295,1775074242073,-1068.29039544,0.00015899,5]
[419262296,1775074242083,-1068.29039544,0.00015899,5]
[419262297,1775074242093,-1068.29039544,0.00015899,5]
[419262298,1775074242104,-1068.29039544,0.00015899,5]
[419262299,1775074242114,-1068.29039544,0.00015899,5]
[419262300,1775074242124,-1068.29039544,0.00015899,5]
[419262301,1775074242135,-898.0,0.000159,5]
[419262302,1775074242145,-717.0,0.000159,5]
[419262303,1775074242155,-276108.09874591,0.000159,2]
[419262308,1775074245438,-456.96597722,0.00014524,2]
[419262309,1775074245450,-43.03402278,0.00014524,2]
[419262310,1775074245460,-653.73881168,0.00014928,2]
[419262311,1775074245494,-582.7291639,0.00014928,2]
[419262313,1775074245604,-1529.53998425,0.00014928,2]
[419262314,1775074245713,-1861.44690134,0.00014928,2]
[419262315,1775074245724,-8342.13959427,0.000159,2]
[419262316,1775074246277,-107680.4811745,0.000159,2]
[419262322,1775074248505,-151.0,0.00015317,2]
[419262323,1775074248514,-389.16205524,0.000159,2]
[419262324,1775074248526,-174155.43931707,0.000159,2]
[419262325,1775074248561,-51058.5,0.000159,2]
[419262326,1775074248619,-1319.23168141,0.000159,2]
[419262327,1775074248631,-429.8813165,0.000159,2]
[419262328,1775074248642,-1489.59508812,0.000159,2]
[419262521,1775075142680,171.99,6.795e-05,2]
[419262525,1775075222797,980.06,6.536e-05,2]
[419262526,1775075288335,557.94,6.105e-05,2]
[419262527,1775075288910,600.0,6.263e-05,2]
[419262528,1775075289411,825.04,6.467e-05,2]
[419262529,1775075289925,1080.0,6.603e-05,2]
[419262530,1775075297255,540.0,6.798e-05,2]
[419262531,1775075300588,700.0,6.988e-05,2]
[419262532,1775075301113,1100.0,7.11e-05,2]
[419262533,1775075301616,609.28,7.317e-05,2]
[419262534,1775075348163,3987.75,7.945e-05,2]
[419262535,1775075348187,164.62,7.945e-05,2]
[419262536,1775075363261,516.13,7.161e-05,2]
[419262537,1775075407909,4800.01,7.945e-05,2]
[419262538,1775075424912,950.0,7e-05,2]
[419262539,1775075425424,440.12,7.551e-05,2]
[419262540,1775075426619,565.51,8.281e-05,2]
[419262545,1775075431717,-171.99,8.493e-05,2]
[419262546,1775075431727,-5046.19731,9.147e-05,2]
[419262547,1775075431737,-1200.0,9.341e-05,2]
[419262548,1775075431748,-356.47409688,9.341e-05,2]
[419262549,1775075431758,-1200.0,9.342e-05,2]
[419262550,1775075431767,-300.0,9.342e-05,2]
[419262551,1775075431778,-300.0,9.342e-05,2]
[419262552,1775075431787,-240.0,9.342e-05,2]
[419262553,1775075431797,-300.0,9.342e-05,2]
[419262554,1775075431807,-300.0,9.342e-05,2]
[419262555,1775075431816,-5000.0,9.343e-05,2]
[419262556,1775075431825,-250.0,9.343e-05,2]
[419262557,1775075431834,-5000.0,9.343e-05,2]
[419262558,1775075431844,-250.0,9.343e-05,2]
[419262559,1775075431853,-1040.0,9.343e-05,2]
[419262560,1775075431862,-262.02,9.8e-05,2]
[419262561,1775075431872,-297.77293359,0.0001,2]
[419262562,1775075431881,-171.99,0.00010192,2]
[419262563,1775075431890,-150.0,0.000102,2]
[419262564,1775075431899,-895.0,0.00010276,2]
[419262565,1775075431910,-420.0,0.00010276,2]
[419262566,1775075431919,-420.0,0.00010276,2]
[419262567,1775075431928,-587.0,0.00011303,2]
[419262568,1775075431938,-300.0,0.00011303,2]
[419262569,1775075431948,-356.47409688,0.00011483,2]
[419262570,1775075431957,-151.0,0.000115,2]
[419262571,1775075431966,-151.0,0.000115,2]
[419262572,1775075431976,-151.0,0.000115,2]
[419262573,1775075431985,-151.0,0.000115,2]
[419262574,1775075431994,-151.0,0.000115,2]
[419262575,1775075432004,-151.0,0.000115,2]
[419262576,1775075432013,-151.0,0.000115,2]
[419262577,1775075432023,-151.0,0.000115,2]
[419262578,1775075432032,-151.0,0.000115,2]
[419262580,1775075432042,-151.0,0.000115,2]
[419262582,1775075432051,-151.0,0.000115,2]
[419262584,1775075432060,-279.27871049,0.00011507,2]
[419262591,1775075432119,-1339.38128951,0.00011507,2]
[419262593,1775075432129,-191.9324,0.000116,7]
[419262595,1775075432137,-376.55979868,0.00011642,2]
[419262597,1775075432147,-151.0,0.00011828,2]
[419262599,1775075432159,-500.0,0.00011867,2]
[419262601,1775075432168,-171.99,0.00011891,2]
[419262603,1775075432178,-163.25,0.00012031,2]
[419262605,1775075432187,-1000.0,0.00012415,2]
[419262607,1775075432196,-150.0,0.00012994,2]
[419262609,1775075432206,-250.0,0.00013,2]
[419262611,1775075432216,-245.5872,0.00013,12]
[419262613,1775075432226,-510.0,0.00013111,2]
[419262615,1775075432236,-321.03,0.00013226,2]
[419262617,1775075432245,-2011.53,0.0001344,2]
[419262619,1775075432255,-321.03,0.000135,2]
[419262621,1775075432264,-171.99,0.00013589,2]
[419262622,1775075432273,-166.66,0.00013699,2]
[419262624,1775075432282,-543.86822643,0.00013725,2]
[419262626,1775075432291,-3212.15634112,0.00013725,2]
[419262628,1775075432300,-356.47409688,0.00013725,2]
[419262630,1775075432310,-321.03,0.00013774,2]
[419262632,1775075432319,-1500.0,0.00013796,2]
[419262634,1775075432328,-500.0,0.00013798,2]
[419262636,1775075432338,-228.1078883,0.00013798,2]
[419262638,1775075432347,-500.0,0.00013798,2]
[419262640,1775075432357,-322.03617795,0.00013798,2]
[419262642,1775075432367,-65496.38648985,0.00013799,2]
[419262644,1775075432379,-7016.10387658,0.00013799,2]
[419262646,1775075432390,-6444.33781323,0.00013799,2]
[419262648,1775075432673,-500.0,0.00013798,2]
[419262649,1775075432682,-500.0,0.00013798,2]
[419262650,1775075432692,-49953.87536968,0.00013799,2]
[419262652,1775075437721,-253.05725254,0.00013798,2]
[419262653,1775075437731,-500.0,0.00013798,2]
[419262654,1775075437740,-161.31560163,0.00013798,2]
[419262655,1775075437752,-215.01139389,0.00013798,2]
[419262656,1775075437763,-36.75390484,0.00013798,2]
[419262671,1775075439948,-463.24609516,0.00013798,2]
[419262673,1775075439958,-500.0,0.00013798,2]
[419262675,1775075439967,-971.26170484,0.00013799,2]
[419262684,1775075440056,-1165.45033526,0.00013799,2]
[419262685,1775075440069,-503.44357086,0.00013799,2]
[419262686,1775075440112,-1741.48362425,0.00013799,2]
[419262687,1775075440167,-479.436717,0.00013799,2]
[419262688,1775075440179,-3521.18509526,0.00013799,2]
[419262689,1775075440190,-2750.87793825,0.00013799,2]
[419262690,1775075440217,-649.60259453,0.00013798,2]
[419262691,1775075440227,-333.55188876,0.00013799,2]
[419262704,1775075440611,-713.67957342,0.00013799,2]
[419262705,1775075440622,-1154.23860153,0.00013799,2]
[419262706,1775075440668,-13801.79304624,0.00013799,2]
[419262707,1775075440680,-2500.0,0.00013799,2]
[419262708,1775075440691,-1948.01126064,0.00013799,2]
[419262751,1775075443005,-16188.8792769,0.00013799,2]
[419262752,1775075443165,-8795.9560557,0.00013799,2]
[419262753,1775075443219,-24710.27845105,0.00013799,2]
[419262820,1775075445725,-12116.40644906,0.00013799,2]
[419262838,1775075447442,-66464.85359184,0.00013799,2]
[419262839,1775075447480,-917.79487806,0.00013799,2]
[419262840,1775075447495,-174745.56251674,0.00013799,2]
[419262841,1775075447506,-1171.03655063,0.00013799,2]
[419262842,1775075447518,-820.63029471,0.00013799,2]
[419262843,1775075447537,-560.6646397,0.00013799,2]
[419262844,1775075447548,-752.48,0.00013799,2]
[419262845,1775075453689,-673433.04928996,0.00013799,2]
[419262846,1775075453699,-150.0,0.00013825,2]
[419262847,1775075453710,-166.66,0.00013875,2]
[419262848,1775075453720,-1600.0,0.00013878,2]
[419262849,1775075453730,-236.03,0.00013902,2]
[419262850,1775075453739,-150.0,0.00013916,2]
[419262851,1775075453750,-543.8682264,0.00013967,2]
[419262852,1775075453760,-321.03,0.00014048,2]
[419262853,1775075453770,-166.66,0.00014052,2]
[419262854,1775075453781,-543.8682264,0.00014208,2]
[419262855,1775075453791,-166.66,0.00014229,2]
[419262856,1775075453801,-165.81,0.00014297,2]
[419262857,1775075453811,-314.241,0.000143,17]
[419262858,1775075453822,-321.03,0.00014322,2]
[419262859,1775075453832,-166.66,0.00014405,2]
[419262860,1775075453842,-543.8682264,0.0001445,2]
[419262861,1775075453852,-3212.15634111,0.0001449,2]
[419262862,1775075453862,-166.66,0.00014582,2]
[419262863,1775075453872,-236.03,0.00014597,2]
[419262864,1775075453882,-543.8682264,0.00014692,2]
[419262865,1775075453892,-165.81,0.00014768,2]
[419262866,1775075453902,-543.8682264,0.00014933,2]
[419262867,1775075453912,-194.8993516,0.00014984,2]
[419262868,1775075453922,-176.05738965,0.00014984,2]
[419262869,1775075453932,-186.86827762,0.00014984,2]
[419262870,1775075453942,-300.0,0.00015,2]
[419262871,1775075453952,-224.28659877,0.00015,2]
[419262872,1775075453962,-203.68,0.00015068,2]
[419262873,1775075453972,-269.12478458,0.00015083,2]
[419262874,1775075453982,-28023.853,0.00015093,2]
[419262875,1775075453992,-543.8682264,0.00015175,2]
[419262876,1775075454002,-500.0,0.00015177,2]
[419262877,1775075454012,-584.6907632,0.00015177,2]
[419262878,1775075454021,-7681.20591386,0.00015193,2]
[419262879,1775075454031,-500.0,0.00015193,2]
[419262880,1775075454041,-481.74323366,0.00015193,2]
[419262881,1775075454051,-500.0,0.00015193,2]
[419262882,1775075454061,-500.0,0.00015193,2]
[419262883,1775075454070,-500.0,0.00015193,2]
[419262884,1775075454079,-500.0,0.00015193,2]
[419262885,1775075454089,-500.0,0.00015193,2]
[419262886,1775075454099,-500.0,0.00015193,2]
[419262887,1775075454108,-500.0,0.00015193,2]
[419262888,1775075454117,-500.0,0.00015193,2]
[419262889,1775075454127,-500.0,0.00015193,2]
[419262890,1775075454136,-500.0,0.00015193,2]
[419262891,1775075454146,-500.0,0.00015193,2]
[419262892,1775075454156,-500.0,0.00015193,2]
[419262893,1775075454165,-174.61919141,0.00015193,2]
[419262894,1775075454175,-165.81,0.0001524,2]
[419262895,1775075454185,-500.0,0.00015248,2]
[419262896,1775075454195,-3212.15634111,0.00015254,2]
[419262897,1775075454204,-236.03,0.00015292,2]
[419262898,1775075454214,-2000.0,0.000153,2]
[419262899,1775075454223,-500.0,0.00015303,2]
[419262900,1775075454233,-288.22335339,0.0001532,2]
[419262901,1775075454242,-500.0,0.00015358,2]
[419262902,1775075454252,-160.0,0.0001536,2]
[419262903,1775075454261,-154.60391023,0.00015375,2]
[419262904,1775075454271,-168.0,0.00015391,2]
[419262905,1775075454280,-168.0,0.00015401,2]
[419262906,1775075454290,-543.8682264,0.00015417,2]
[419262907,1775075454300,-434.27520335,0.00015434,2]
[419262908,1775075454309,-160.0,0.00015458,2]
[419262909,1775075454319,-168.0,0.00015521,2]
[419262910,1775075454328,-350.0,0.00015538,2]
[419262911,1775075454338,-168.0,0.00015546,2]
[419262912,1775075454347,-168.0,0.00015583,2]
[419262913,1775075454362,-1600.0,0.00015612,2]
[419262914,1775075454372,-543.8682264,0.00015658,2]
[419262915,1775075454383,-2234.69183698,0.0001568,2]
[419262916,1775075454393,-747.49387295,0.000157,2]
[419262917,1775075454403,-402.0871,0.000157,22]
[419262918,1775075454412,-165.81,0.00015712,2]
[419262919,1775075454422,-747.49387292,0.00015722,2]
[419262920,1775075454432,-181.08010149,0.00015741,2]
[419262921,1775075454442,-1295.685,0.00015743,2]
[419262922,1775075454452,-747.49387292,0.00015744,2]
[419262923,1775075454462,-168.0,0.00015749,2]
[419262924,1775075454472,-747.49387292,0.00015767,2]
[419262925,1775075454483,-98623.9789,0.00015787,2]
[419262926,1775075454493,-747.49387292,0.00015789,2]
[419262927,1775075454503,-1000.0,0.000158,2]
[419262928,1775075454512,-747.49387292,0.00015811,2]
[419262929,1775075454522,-747.49387292,0.00015833,2]
[419262930,1775075454532,-2000.0,0.0001584,2]
[419262931,1775075454542,-2000.0,0.0001584,2]
[419262932,1775075454551,-2000.0,0.0001584,2]
[419262933,1775075454562,-747.49387292,0.00015856,2]
[419262934,1775075454572,-500.0,0.00015872,2]
[419262935,1775075454582,-200.0,0.00015872,2]
[419262936,1775075454592,-747.49387292,0.00015878,2]
[419262937,1775075454601,-39327.5037702,0.00015887,2]
[419262938,1775075454612,-5235.0495552,0.00015887,2]
[419262939,1775075454621,-19858.5837231,0.00015887,2]
[419262940,1775075454631,-161.0,0.000159,3]
[419262941,1775075454642,-1325.05799491,0.000159,2]
[419262942,1775075454652,-200.0,0.000159,2]
[419262943,1775075454662,-618.31475478,0.000159,2]
[419262944,1775075454672,-200.0,0.000159,2]
[419262945,1775075454683,-5000.0,0.000159,2]
[419262946,1775075454692,-500.0,0.000159,2]
[419262947,1775075454702,-2500.0,0.000159,2]
[419262948,1775075454712,-747.49387292,0.000159,2]
[419262949,1775075454722,-17647.99652714,0.000159,2]
[419262950,1775075454733,-543.8682264,0.000159,2]
[419262951,1775075454742,-269.6744984,0.000159,2]
[419262952,1775075454754,-1931.58446497,0.000159,2]
[419262953,1775075454764,-168.0,0.00015904,2]
[419262954,1775075454774,-1524.0,0.00015939,2]
[419262955,1775075454784,-712.93598793,0.00015939,2]
[419262956,1775075454793,-168.0,0.00015958,2]
[419262957,1775075454803,-500.0,0.00015973,2]
[419262958,1775075454813,-500.0,0.00015973,2]
[419262959,1775075454823,-500.0,0.00015973,2]
[419262960,1775075454833,-154.69399978,0.00015984,2]
[419262961,1775075454843,-413.68542021,0.00015984,2]
[419262962,1775075454853,-236.03,0.00015987,2]
[419262963,1775075454863,-269.12478458,0.0001599,2]
[419262964,1775075454873,-269.12478458,0.0001599,2]
[419262965,1775075454883,-151.0,0.00015997,2]
[419262966,1775075454892,-919.0,0.00016,5]
[419262967,1775075454902,-737.0,0.00016,5]
[419262968,1775075454912,-931716.03748951,0.00016,2]
[419262969,1775075454922,-1335072.71578025,0.00016,2]
[419262970,1775075454932,-1339739.15454791,0.00016,2]
[419262971,1775075454942,-10000.0,0.00016,2]
[419262972,1775075454951,-165.52822242,0.00016,8]
[419262973,1775075454961,-1937202.94770288,0.00016,2]
[419262974,1775075454971,-1344844.12651962,0.00016,2]
[419262975,1775075454980,-372257.50433498,0.00016,2]
[419262976,1775075454990,-103933.43101985,0.00016,2]
[419262977,1775075455000,-250.0,0.00016,2]
[419262978,1775075455010,-250.0,0.00016,2]
[419262979,1775075455020,-250.0,0.00016,2]
[419262980,1775075455030,-392468.76060895,0.00016,2]
[419262981,1775075455041,-151.0,0.00016,2]
[419262982,1775075455052,-637021.46392484,0.00016,2]
[419262983,1775075455063,-151.0,0.00016,2]
[419262984,1775075455073,-151.0,0.00016,2]
[419262985,1775075455083,-151.0,0.00016,2]
[419262986,1775075455092,-151.0,0.00016,2]
[419262987,1775075455103,-151.0,0.00016,2]
[419262988,1775075455115,-151.0,0.00016,2]
[419262989,1775075455126,-151.0,0.00016,2]
[419262990,1775075455137,-151.0,0.00016,2]
[419262991,1775075455148,-151.0,0.00016,2]
[419262992,1775075455158,-151.0,0.00016,2]
[419262993,1775075455169,-151.0,0.00016,2]
[419262994,1775075455179,-151.0,0.00016,2]
[419262995,1775075455189,-151.0,0.00016,2]
[419262996,1775075455202,-151.0,0.00016,2]
[419262997,1775075455212,-151.0,0.00016,2]
[419262998,1775075455222,-151.0,0.00016,2]
[419262999,1775075455231,-151.0,0.00016,2]
[419263000,1775075455241,-265.049967,0.00016,2]
[419263001,1775075455251,-2000.0,0.00016,2]
[419263002,1775075455262,-2000.0,0.00016,2]
[419263003,1775075455271,-2000.0,0.00016,2]
[419263004,1775075455282,-936.0,0.00016,2]
[419263005,1775075455291,-151.0,0.00016,2]
[419263006,1775075455302,-151.0,0.00016,2]
[419263007,1775075455312,-151.0,0.00016,2]
[419263008,1775075455322,-151.0,0.00016,2]
[419263009,1775075455331,-151.0,0.00016,2]
[419263010,1775075455341,-151.0,0.00016,2]
[419263011,1775075455351,-151.0,0.00016,2]
[419263012,1775075455360,-151.0,0.00016,2]
[419263013,1775075455370,-151.0,0.00016,2]
[419263014,1775075455380,-151.0,0.00016,2]
[419263015,1775075455390,-306.0,0.00016,2]
[419263016,1775075455401,-459.39604274,0.00016,2]
[419263017,1775075455410,-151.0,0.00016,2]
[419263018,1775075455420,-151.0,0.00016,2]
[419263019,1775075455430,-151.0,0.00016,2]
[419263020,1775075455441,-292.327798,0.00016,2]
[419263021,1775075455451,-1000.0,0.00016,2]
[419263022,1775075455461,-1000.62479826,0.00016,2]
[419263023,1775075455471,-151.0,0.00016,2]